fUSD/lending_fUSD_20260318
["ID","MTS","AMOUNT","RATE_DAILY","PERIOD"]
[408523551,1773819210102,150.0,0.00021996,120]
[408523552,1773819210493,279.41,0.00023339,120]
[408523553,1773819210852,419.11,0.00024681,120]
[408523554,1773819211242,558.81,0.00026023,120]
[408523555,1773819211664,698.51,0.00027366,120]
[408523556,1773819212040,838.22,0.00028708,120]
[408523557,1773819212480,977.92,0.00030051,120]
[408523558,1773819242730,150.0,0.00021993,120]
[408523559,1773819243261,236.62,0.00023335,120]
[408523560,1773819243802,354.93,0.00024677,120]
[408523561,1773819244111,473.24,0.00026019,120]
[408523562,1773819244493,591.55,0.00027362,120]
[408523563,1773819244867,709.86,0.00028704,120]
[408523564,1773819245245,828.17,0.00030046,120]
[408523565,1773819276894,150.0,0.00021999,120]
[408523566,1773819277305,200.14,0.00023341,120]
[408523567,1773819277782,166.28201359,0.00030046,120]
[408523568,1773819277843,300.21,0.00024684,120]
[408523569,1773819278227,400.27,0.00026026,120]
[408523570,1773819278585,500.34,0.00027369,120]
[408523571,1773819278964,600.41,0.00028712,120]
[408523572,1773819279335,700.48,0.00030054,120]
[408523573,1773819309918,150.0,0.00022032,120]
[408523574,1773819310579,169.03,0.00023376,120]
[408523575,1773819310959,253.54,0.00024721,120]
[408523576,1773819311360,338.05,0.00026066,120]
[408523577,1773819311730,422.56,0.0002741,120]
[408523578,1773819312093,507.08,0.00028755,120]
[408523579,1773819312752,591.59,0.000301,120]
[408523580,1773819342528,150.0,0.00022029,120]
[408523581,1773819342923,150.0,0.00023374,120]
[408523582,1773819343317,213.74,0.00024718,120]
[408523583,1773819343676,284.99,0.00026063,120]
[408523584,1773819344048,356.24,0.00027407,120]
[408523585,1773819344658,427.49,0.00028752,120]
[408523586,1773819344797,498.74,0.00030096,120]
[408523587,1773819374913,150.0,0.00022034,120]
[408523588,1773819375292,150.0,0.00023379,120]
[408523589,1773819375665,179.69,0.00024723,120]
[408523590,1773819376029,239.58,0.00026068,120]
[408523591,1773819376429,299.48,0.00027413,120]
[408523592,1773819376791,359.38,0.00028758,120]
[408523593,1773819377167,419.27,0.00030102,120]
[408523594,1773819407586,150.0,0.0002203,120]
[408523595,1773819408062,150.0,0.00023375,120]
[408523596,1773819408480,150.28,0.00024719,120]
[408523597,1773819408855,200.37,0.00026064,120]
[408523598,1773819409222,250.46,0.00027409,120]
[408523599,1773819409635,300.55,0.00028753,120]
[408523600,1773819410347,350.65,0.00030098,120]
[408523602,1773819447083,1031.87832,0.0003013,120]
[408523604,1773819465798,150.0,0.00022369,120]
[408523605,1773819466206,150.0,0.00023735,120]
[408523606,1773819466599,150.0,0.000251,120]
[408523607,1773819466974,166.5,0.00026465,120]
[408523608,1773819467361,208.13,0.00027831,120]
[408523609,1773819467725,249.75,0.00029196,120]
[408523610,1773819501204,150.0,0.00022373,120]
[408523611,1773819501581,150.0,0.00023738,120]
[408523612,1773819501941,150.0,0.00025103,120]
[408523613,1773819502414,150.0,0.00026469,120]
[408523614,1773819502800,178.82,0.00027834,120]
[408523616,1773819503648,214.59,0.000292,120]
[408523618,1773819531929,150.0,0.00022458,120]
[408523619,1773819532338,150.0,0.00023829,120]
[408523620,1773819532698,150.0,0.000252,120]
[408523621,1773819533078,150.0,0.0002657,120]
[408523622,1773819533630,151.73,0.00027941,120]
[408523623,1773819533993,182.08,0.00029312,120]
[408523626,1773819561499,150.0,0.00022458,120]
[408523627,1773819561875,150.0,0.00023829,120]
[408523628,1773819562247,150.0,0.00025199,120]
[408523629,1773819562612,150.0,0.0002657,120]
[408523630,1773819563020,150.0,0.00027941,120]
[408523631,1773819563404,151.52,0.00029311,120]
[408523632,1773819594005,150.0,0.0002242,120]
[408523633,1773819594389,150.0,0.00023788,120]
[408523634,1773819594831,150.0,0.00025157,120]
[408523635,1773819595224,150.0,0.00026525,120]
[408523636,1773819595601,150.0,0.00027893,120]
[408523637,1773819595972,150.0,0.00029262,120]
[408523638,1773819600758,235.14543036,0.00028955,120]
[408523639,1773819646706,150.0,0.00022415,120]
[408523640,1773819647133,150.0,0.00023783,120]
[408523641,1773819647523,150.0,0.00025151,120]
[408523642,1773819647922,150.0,0.00026519,120]
[408523643,1773819674723,150.0,0.00022418,120]
[408523644,1773819675117,150.0,0.00023786,120]
[408523645,1773819699482,150.0,0.00022424,120]
[408523646,1773819826054,1000.0,0.00030137,120]
[408523647,1773819839156,3359.0,0.00030137,120]
[408523648,1773819876715,1000.0,0.00030137,120]
[408523649,1773819883172,2842.76,0.00030137,120]
[408523650,1773819972065,1000.0,0.0003013,120]
[408523651,1773820089511,5000.01,9.794e-05,2]
[408523652,1773820089532,3101.39,9.794e-05,2]
[408523654,1773820111856,880.0,0.00030136,120]
[408523655,1773820130811,313.0,9.794e-05,2]
[408523656,1773820174152,-5080.93661323,0.00011237,2]
[408523657,1773820220666,-548.66832877,0.00011237,2]
[408523658,1773820220695,-242.0,0.00011237,2]
[408523659,1773820220724,-1430.51334246,0.00011507,2]
[408523660,1773820220946,-557.64665754,0.00011507,2]
[408523661,1773820220980,-300.0,0.00011758,2]
[408523662,1773820221009,-643.0,0.00011758,2]
[408523663,1773820221038,-300.0,0.00011758,2]
[408523664,1773820221068,-198.71668492,0.00011758,2]
[408523665,1773820222993,-1001.28331508,0.00011758,2]
[408523666,1773820229067,-2311.43043856,0.00011759,2]
[408523667,1773820229180,-5000.01,0.00011759,2]
[408523672,1773820231607,-1334.79844403,0.00011759,2]
[408523673,1773820231618,-272.20915753,0.00011759,2]
[408523674,1773820231627,-2535.1405429,0.00012184,2]
[408523675,1773820231637,-1382.05658103,0.00012361,2]
[408523676,1773820231647,-250.0,0.00012423,2]
[408523677,1773820231656,-1722.45881604,0.00012423,2]
[408523678,1773820231666,-336.00066483,0.00012423,2]
[408523679,1773820231675,-272.20915752,0.0001283,2]
[408523680,1773820231685,-166.66,0.0001291,2]
[408523681,1773820231694,-420.0,0.00012911,2]
[408523682,1773820231704,-1680.0,0.00012934,2]
[408523683,1773820231713,-166.66,0.00013182,2]
[408523684,1773820231722,-200.0,0.0001325,2]
[408523685,1773820231732,-3240.0,0.00013425,2]
[408523686,1773820231741,-166.66,0.00013454,2]
[408523687,1773820231751,-200.0,0.0001351,2]
[408523688,1773820231761,-200.0,0.0001352,2]
[408523689,1773820231770,-200.0,0.0001353,2]
[408523690,1773820231780,-200.0,0.0001354,2]
[408523691,1773820231789,-200.0,0.0001355,2]
[408523692,1773820231799,-200.0,0.0001356,2]
[408523693,1773820231809,-200.0,0.0001357,2]
[408523694,1773820231819,-200.0,0.0001358,2]
[408523695,1773820231828,-670.75815409,0.00013582,2]
[408523696,1773820231838,-200.0,0.0001359,2]
[408523697,1773820231847,-222.84,0.000136,2]
[408523698,1773820231857,-500.28,0.00013646,2]
[408523699,1773820231867,-244.1,0.00013699,2]
[408523700,1773820231877,-166.66,0.00013725,2]
[408523701,1773820231886,-1580.89941575,0.00013897,2]
[408523702,1773820231895,-150.0,0.00013899,2]
[408523703,1773820231905,-272.20915752,0.000139,2]
[408523704,1773820231914,-224421.4464,0.000139,2]
[408523705,1773820231923,-6253.11626767,0.00013906,2]
[408523706,1773820231936,-8550.28373233,0.00013906,2]
[408523707,1773820231945,-5646.0793187,0.00013934,2]
[408523709,1773820231956,-38784.62849803,0.00013934,2]
[408523711,1773820231966,-166.66,0.00013997,2]
[408523713,1773820231975,-965.23425198,0.00014,2]
[408523715,1773820231984,-4936.30088919,0.00014,2]
[408523717,1773820231994,-3323.6519945,0.00014,2]
[408523719,1773820232003,-4197.313043,0.00014,2]
[408523721,1773820232012,-3612.61201012,0.00014,2]
[408523722,1773820232021,-2288.92313105,0.00014,2]
[408523723,1773820232031,-343.29740235,0.00014,2]
[408523724,1773820232040,-1264.92797564,0.00014,2]
[408523725,1773820232049,-1166.21468347,0.00014,2]
[408523726,1773820232059,-754.75604291,0.00014,2]
[408523727,1773820232068,-984.94696938,0.00014,2]
[408523728,1773820232078,-496.5116,0.00014003,2]
[408523729,1773820232087,-1811.1223,0.00014003,2]
[408523730,1773820232096,-15630.7433,0.00014003,2]
[408523731,1773820232105,-500.0,0.00014004,2]
[408523732,1773820232115,-2500.0,0.00014004,2]
[408523733,1773820232125,-2602.43266321,0.00014073,2]
[408523734,1773820232136,-5176.86482141,0.00014073,2]
[408523736,1773820232145,-532.75297208,0.00014095,2]
[408523737,1773820232155,-151.0,0.00014095,2]
[408523738,1773820232164,-151.0,0.00014095,2]
[408523739,1773820232173,-200.0,0.00014095,2]
[408523740,1773820232182,-151.0,0.00014095,2]
[408523741,1773820232191,-500.0,0.00014095,2]
[408523742,1773820232200,-529.17570437,0.00014095,2]
[408523743,1773820232210,-151.0,0.00014095,2]
[408523744,1773820232219,-151.0,0.00014095,2]
[408523745,1773820232228,-151.0,0.00014095,2]
[408523746,1773820232237,-151.0,0.00014095,2]
[408523747,1773820232247,-156.41294575,0.00014095,2]
[408523748,1773820232256,-706.01,0.00014103,2]
[408523749,1773820232265,-400.21031602,0.00014104,2]
[408523750,1773820232274,-500.0,0.00014104,2]
[408523751,1773820232283,-430.25268291,0.00014104,2]
[408523752,1773820232292,-500.0,0.00014104,2]
[408523753,1773820232301,-500.0,0.00014104,2]
[408523754,1773820232310,-1000.0,0.00014104,2]
[408523755,1773820232319,-368.0,0.00014177,2]
[408523756,1773820232328,-500.0,0.00014204,2]
[408523757,1773820232336,-500.0,0.00014204,2]
[408523758,1773820232346,-500.0,0.00014204,2]
[408523759,1773820232359,-500.0,0.00014204,2]
[408523760,1773820232368,-500.0,0.00014204,2]
[408523761,1773820232377,-500.0,0.00014204,2]
[408523762,1773820232387,-521.68230757,0.00014204,2]
[408523763,1773820232397,-536.98632402,0.00014204,2]
[408523764,1773820232407,-2351.0,0.00014227,2]
[408523765,1773820232416,-166.66,0.00014269,2]
[408523766,1773820232428,-189.0,0.00014307,2]
[408523767,1773820232437,-189.0,0.00014364,2]
[408523768,1773820232447,-706.01,0.00014377,2]
[408523769,1773820232456,-244.1,0.00014384,2]
[408523770,1773820232465,-1580.89941569,0.00014469,2]
[408523771,1773820232475,-7779.29748454,0.00014498,2]
[408523772,1773820232484,-795.0,0.00014633,2]
[408523773,1773820232493,-200.0,0.00014643,2]
[408523774,1773820232503,-706.01,0.00014651,2]
[408523775,1773820232513,-1377.06999647,0.0001466,2]
[408523776,1773820232522,-500.0,0.0001466,2]
[408523777,1773820232531,-8882.6885148,0.0001466,2]
[408523778,1773820232540,-268.1075023,0.0001466,2]
[408523779,1773820232550,-750.0,0.0001466,2]
[408523780,1773820232560,-500.0,0.0001466,2]
[408523781,1773820232569,-500.0,0.0001466,2]
[408523782,1773820232579,-250.0,0.0001466,2]
[408523783,1773820232588,-500.0,0.0001466,2]
[408523784,1773820232598,-250.0,0.0001466,2]
[408523785,1773820232607,-250.0,0.0001466,2]
[408523786,1773820232616,-387.50682198,0.0001466,2]
[408523787,1773820232819,-181.95370885,0.0001466,2]
[408523788,1773820232829,-274.1930115,0.0001466,2]
[408523789,1773820232841,-151.0,0.0001466,2]
[408523790,1773820232851,-151.0,0.0001466,2]
[408523791,1773820232861,-151.0,0.0001466,2]
[408523792,1773820232871,-201.04041191,0.0001466,2]
[408523793,1773820232880,-500.0,0.0001466,2]
[408523794,1773820232889,-500.0,0.0001466,2]
[408523795,1773820232899,-500.0,0.0001466,2]
[408523796,1773820232908,-500.0,0.0001466,2]
[408523797,1773820232919,-500.0,0.0001466,2]
[408523798,1773820232928,-500.0,0.0001466,2]
[408523799,1773820232939,-500.0,0.0001466,2]
[408523800,1773820232948,-500.0,0.0001466,2]
[408523801,1773820232957,-500.0,0.0001466,2]
[408523802,1773820232967,-500.0,0.0001466,2]
[408523803,1773820232978,-500.0,0.0001466,2]
[408523804,1773820232988,-500.0,0.0001466,2]
[408523805,1773820232998,-500.0,0.0001466,2]
[408523806,1773820233007,-2195.27461532,0.00014715,2]
[408523807,1773820233019,-151.0,0.00014715,2]
[408523808,1773820233030,-168.0,0.00014727,2]
[408523809,1773820233040,-7779.29748454,0.00014923,2]
[408523810,1773820233050,-706.01,0.00014925,2]
[408523811,1773820233061,-250.0,0.00015,2]
[408523812,1773820233072,-168.0,0.00015022,2]
[408523813,1773820233083,-255.0,0.00015025,2]
[408523814,1773820233094,-1580.89941569,0.00015041,2]
[408523815,1773820233104,-244.1,0.00015068,2]
[408523816,1773820233114,-500.0,0.00015187,2]
[408523817,1773820233124,-500.0,0.00015187,2]
[408523818,1773820233135,-168.0,0.00015189,2]
[408523819,1773820233146,-706.01,0.00015199,2]
[408523820,1773820233155,-168.0,0.00015255,2]
[408523821,1773820233165,-168.0,0.00015278,2]
[408523822,1773820233175,-168.0,0.00015284,2]
[408523823,1773820233186,-168.0,0.000153,2]
[408523824,1773820233197,-2000.0,0.00015342,2]
[408523825,1773820233206,-7779.29748454,0.00015349,2]
[408523826,1773820233216,-339.9,0.00015402,2]
[408523827,1773820233226,-196.0,0.00015417,2]
[408523828,1773820233236,-196.0,0.0001542,2]
[408523829,1773820233245,-706.01850225,0.00015473,2]
[408523830,1773820233255,-168.0,0.00015507,2]
[408523831,1773820233264,-1616.23,0.00015507,2]
[408523832,1773820233274,-1580.89941569,0.00015613,2]
[408523833,1773820233284,-196.0,0.00015626,2]
[408523834,1773820233293,-160.0,0.00015637,7]
[408523835,1773820233305,-171.582957,0.00015637,7]
[408523836,1773820233315,-183.165915,0.00015637,7]
[408523837,1773820233325,-202.081454,0.00015637,7]
[408523838,1773820233334,-269.92433,0.00015637,7]
[408523839,1773820233346,-160.0,0.00015637,7]
[408523840,1773820233356,-336.764109,0.00015637,7]
[408523841,1773820233366,-513.528218,0.00015637,7]
[408523842,1773820233375,-3292.0,0.0001565,2]
[408523843,1773820233386,-2337.79958616,0.000157,2]
[408523844,1773820233399,-296.20041384,0.000157,2]
[408523845,1773820233409,-244.1,0.00015753,2]
[408523846,1773820233419,-7779.29748454,0.00015774,2]
[408523847,1773820233430,-1700.0,0.000158,5]
[408523848,1773820233440,-5000.0,0.00015856,2]
[408523849,1773820233449,-380.059427,0.00015889,7]
[408523850,1773820233458,-324.081684,0.00015889,7]
[408523851,1773820233468,-196.0,0.00015893,2]
[408523852,1773820233477,-1616.23,0.00015895,2]
[408523853,1773820233487,-3500.0,0.000159,5]
[408523854,1773820233497,-2868.13074646,0.000159,2]
[408523855,1773820233508,-160.0,0.00015918,7]
[408523856,1773820233517,-254.050117,0.00015918,7]
[408523857,1773820233527,-348.100234,0.00015918,7]
[408523858,1773820233536,-406.946734,0.00015918,7]
[408523859,1773820233545,-500.0,0.00015955,2]
[408523860,1773820233555,-284.30717999,0.00015955,2]
[408523861,1773820233564,-500.0,0.00015955,2]
[408523862,1773820233574,-367.49670816,0.00015955,2]
[408523863,1773820233583,-500.0,0.00015955,2]
[408523864,1773820233593,-500.0,0.00015955,2]
[408523865,1773820233603,-500.0,0.00015955,2]
[408523866,1773820233612,-500.0,0.00015955,2]
[408523867,1773820233622,-251.67191044,0.00015955,2]
[408523868,1773820233633,-424.72029701,0.00015955,2]
[408523869,1773820233643,-150.0,0.00015955,2]
[408523870,1773820233652,-150.0,0.00015955,2]
[408523871,1773820233663,-46993.06317501,0.00015956,2]
[408523872,1773820233675,-56340.61849163,0.00015956,2]
[408523873,1773820233746,-295.353,0.00014072,2]
[408523878,1773820238016,-140.05581718,0.00014072,2]
[408523879,1773820238026,-390.19364159,0.00014072,2]
[408523880,1773820238036,-500.0,0.00014072,2]
[408523881,1773820238046,-500.0,0.00014072,2]
[408523882,1773820238057,-500.0,0.00014072,2]
[408523883,1773820238067,-500.0,0.00014072,2]
[408523884,1773820238076,-500.0,0.00014072,2]
[408523885,1773820238086,-500.0,0.00014072,2]
[408523886,1773820238098,-201.60935073,0.00014072,2]
[408523887,1773820238120,-298.39064927,0.00014072,2]
[408523888,1773820238132,-375.72973493,0.00014072,2]
[408523889,1773820238142,-500.0,0.00014072,2]
[408523898,1773820238380,-500.0,0.00014072,2]
[408523900,1773820238389,-500.0,0.00014072,2]
[408523902,1773820238401,-500.0,0.00014072,2]
[408523904,1773820238411,-500.0,0.00014072,2]
[408523906,1773820238420,-500.0,0.00014072,2]
[408523908,1773820238431,-500.0,0.00014072,2]
[408523910,1773820238440,-500.0,0.00014072,2]
[408523912,1773820238450,-500.0,0.00014072,2]
[408523914,1773820238459,-500.0,0.00014072,2]
[408523916,1773820238468,-500.0,0.00014072,2]
[408523918,1773820238478,-185.8796158,0.00014072,2]
[408523921,1773820238494,-314.1203842,0.00014072,2]
[408523923,1773820238504,-500.0,0.00014072,2]
[408523925,1773820238514,-25.70434434,0.00014072,2]
[408523927,1773820238526,-474.29565566,0.00014072,2]
[408523930,1773820238535,-500.0,0.00014072,2]
[408523932,1773820238546,-500.0,0.00014072,2]
[408523934,1773820238555,-500.0,0.00014072,2]
[408523936,1773820238566,-100.10420142,0.00014072,2]
[408523938,1773820238579,-358.91621598,0.00014072,2]
[408523940,1773820238588,-500.0,0.00014072,2]
[408523942,1773820238598,-811.48897762,0.00015956,2]
[408523944,1773820238609,-2040.39675141,0.00015956,2]
[408523947,1773820238620,-2560.79530395,0.00015956,2]
[408523954,1773820238681,-25209.94,0.00015956,2]
[408524037,1773820239988,-361.01643239,0.00015956,2]
[408524039,1773820242764,-516.03439514,0.00015956,2]
[408524040,1773820242775,-438.70826076,0.00015956,2]
[408524041,1773820242882,-3547.72641833,0.00015956,2]
[408524042,1773820242894,-2200.0,0.00015956,2]
[408524043,1773820242926,-737.0,0.00015956,2]
[408524047,1773820245832,-2041.59274058,0.00015956,2]
[408524048,1773820245846,-560.70727667,0.00015956,2]
[408524052,1773820296278,2007.84,0.0003,120]
[408524053,1773820378225,3385.0,0.0003013,120]
[408524054,1773820393906,567.864423,0.00026082,120]
[408524055,1773820635823,1588.8093,0.0003013,120]
[408524058,1773820829995,-300.0,0.00011989,2]
[408524059,1773820830027,-1200.0,0.00011989,2]
[408524060,1773820830057,-150.0,0.00011989,2]
[408524061,1773820830121,-1700.01,0.0001199,2]
[408524062,1773820833040,-5000.01,0.0001199,2]
[408524063,1773820836034,-5000.01,0.0001199,2]
[408524064,1773820838913,-5000.01,0.0001199,2]
[408524065,1773820842142,-5000.01,0.0001199,2]
[408524066,1773820845001,-5000.01,0.0001199,2]
[408524067,1773820848175,-5000.01,0.0001199,2]
[408524068,1773820851046,-5000.01,0.0001199,2]
[408524069,1773820854196,-5000.01,0.0001199,2]
[408524070,1773820857160,-5000.01,0.0001199,2]
[408524071,1773820860369,-5000.01,0.0001199,2]
[408524072,1773820863187,-300.0,0.00011989,2]
[408524073,1773820863222,-4400.01,0.0001199,2]
[408524074,1773820866387,-5000.01,0.0001199,2]
[408524075,1773820869478,-1002.07601724,0.00011989,2]
[408524076,1773820869521,-2995.85796552,0.0001199,2]
[408524077,1773820872398,-5000.01,0.0001199,2]
[408524078,1773820875265,-5000.01,0.0001199,2]
[408524079,1773820878413,-5000.01,0.0001199,2]
[408524080,1773820881290,-5000.01,0.0001199,2]
[408524081,1773820884467,-5000.01,0.0001199,2]
[408524082,1773820887386,-5000.01,0.0001199,2]
[408524083,1773820890558,-2098.16840273,0.0001199,2]
[408524084,1773820890583,-803.67319454,0.0001199,2]
[408524085,1773820893464,-248.0,0.0001199,2]
[408524087,1773820947932,575.68285676,0.00029,120]
[408524088,1773820954771,159.88617756,0.0003,120]
[408524090,1773820957856,4504.01,9.5e-05,3]
[408524091,1773820957885,61972.51115666,9.5e-05,3]
[408524092,1773820957911,100000.0,9.5e-05,3]
[408524093,1773820957937,100000.0,9.5e-05,3]
[408524094,1773820957963,357057.84929565,9.5e-05,3]
[408524095,1773820959990,224.81301984,0.0003,120]
[408524096,1773821057573,646.66,6.568e-05,2]
[408524097,1773821058057,646.66,6.914e-05,2]
[408524098,1773821058095,646.66,7.26e-05,2]
[408524099,1773821060003,646.66,7.605e-05,2]
[408524100,1773821060193,646.66,7.951e-05,2]
[408524101,1773821060721,646.66,8.297e-05,2]
[408524102,1773821060927,646.66,8.642e-05,2]
[408524103,1773821061128,473.39,8.988e-05,2]
[408524104,1773821061155,173.27,8.988e-05,2]
[408524105,1773821061340,646.66,9.334e-05,2]
[408524106,1773821062818,-646.66,9.679e-05,2]
[408524107,1773821062851,646.66,0.00010025,2]
[408524108,1773821062896,646.66,0.00010371,2]
[408524109,1773821062963,646.66,0.00010717,2]
[408524110,1773821063161,646.66,0.00011062,2]
[408524111,1773821063351,646.66,0.00011408,2]
[408524112,1773821063541,473.39,0.00011754,2]
[408524113,1773821068946,-173.27,0.00011754,2]
[408524114,1773821074288,500.0,0.0003013,120]
[408524115,1773821101574,1087.50462509,0.00030137,120]
[408524121,1773821328959,941.66,0.00030137,120]
[408524122,1773821376545,1052.79,0.00030137,120]
[408524131,1773821431822,-646.66,0.00012099,2]
[408524132,1773821431836,-2756.00650523,0.00012099,2]
[408524133,1773821431851,-646.66,0.00012445,2]
[408524134,1773821431864,-646.66,0.00012791,2]
[408524135,1773821431877,-160.65725494,0.00013036,2]
[408524136,1773821431890,-646.66,0.00013136,2]
[408524137,1773821431903,-1200.0,0.00013147,2]
[408524138,1773821431916,-2477.14,0.00013148,2]
[408524139,1773821431929,-300.0,0.00013165,2]
[408524140,1773821431943,-8849.857972,0.00013166,2]
[408524141,1773821431956,-150.0,0.00013426,2]
[408524142,1773821431968,-1852.42,0.00013454,2]
[408524144,1773821431980,-152548.95614841,0.00013606,2]
[408524146,1773821431995,-41100.15245662,0.00013606,2]
[408524149,1773821432011,-2065.36219313,0.00013606,2]
[408524151,1773821432025,-345.51780687,0.00013606,2]
[408524163,1773821437764,-50803.87806058,0.00013606,2]
[408524168,1773821437808,-24386.17193439,0.00013606,2]
[408524169,1773821437817,-160.65725494,0.00013703,2]
[408524170,1773821437826,-213.5884,0.00013706,2]
[408524171,1773821437835,-6760.7232,0.00013706,2]
[408524172,1773821437845,-2500.0,0.00013706,2]
[408524173,1773821437854,-150.0,0.00013772,2]
[408524174,1773821437864,-7795.59856388,0.00013773,2]
[408524175,1773821437873,-5095.84660566,0.000138,2]
[408524176,1773821437882,-1156.4978308,0.000138,2]
[408524177,1773821437893,-151.0,0.00013803,2]
[408524178,1773821437904,-151.0,0.00013803,2]
[408524179,1773821437914,-500.0,0.00013873,2]
[408524180,1773821437923,-500.0,0.00013873,2]
[408524181,1773821437933,-151.0,0.00013892,2]
[408524182,1773821437942,-165.99030755,0.00013892,2]
[408524183,1773821437951,-274160.60071594,0.000139,2]
[408524184,1773821437962,-197358.58108406,0.000139,2]
[408524185,1773821437971,-1500.0,0.000139,5]
[408524186,1773821437985,-500.0,0.00014,7]
[408524187,1773821437995,-1000.0,0.00014004,2]
[408524188,1773821438004,-500.0,0.00014104,2]
[408524189,1773821438013,-500.0,0.00014104,2]
[408524190,1773821438023,-500.0,0.00014104,2]
[408524191,1773821438032,-289.3873478,0.00014104,2]
[408524192,1773821438041,-19691.88298282,0.000142,2]
[408524193,1773821438051,-1761.32,0.00014204,2]
[408524194,1773821438061,-7795.59856388,0.00014232,2]
[408524195,1773821438071,-4177.56042144,0.00014256,2]
[408524196,1773821438088,-918.28618415,0.00014256,2]
[408524197,1773821438098,-140.52062285,0.00014348,2]
[408524198,1773821438111,-186.26937715,0.00014348,2]
[408524199,1773821438121,-1149.41083137,0.00014386,2]
[408524200,1773821438150,-7.08699941,0.00014386,2]
[408524201,1773821438160,-501.44826353,0.00014421,2]
[408524202,1773821438169,-1000.0,0.00014421,2]
[408524203,1773821438178,-420.0,0.00014435,2]
[408524204,1773821438187,-500.0,0.0001444,2]
[408524205,1773821438196,-500.0,0.0001444,2]
[408524206,1773821438206,-500.0,0.0001444,2]
[408524207,1773821438216,-213.0,0.00014462,2]
[408524208,1773821438225,-8882.6885148,0.00014516,2]
[408524209,1773821438234,-158.34833909,0.00014516,2]
[408524210,1773821438243,-9211.34798985,0.00014571,2]
[408524211,1773821438252,-1912.0871643,0.0001459,2]
[408524212,1773821438261,-9552.16786547,0.00014626,2]
[408524213,1773821438270,-9905.5980765,0.00014681,2]
[408524214,1773821438279,-7795.59856388,0.0001469,2]
[408524215,1773821438288,-5095.84660559,0.00014711,2]
[408524216,1773821438298,-2206.06468914,0.00014736,2]
[408524217,1773821438308,-1974.6702266,0.00014838,2]
[408524218,1773821438319,-991.43,0.00014841,2]
[408524219,1773821438329,-255.0,0.00014888,2]
[408524220,1773821438338,-210.67,0.00014968,2]
[408524221,1773821438349,-1500.0,0.00014968,2]
[408524222,1773821438359,-1156.49783078,0.00014971,2]
[408524223,1773821438368,-1000.0,0.00014988,2]
[408524224,1773821438379,-1000.0,0.00014988,2]
[408524225,1773821438392,-590.86627416,0.00014988,2]
[408524226,1773821438403,-4179.83871006,0.00015,7]
[408524227,1773821438412,-250.0,0.00015,2]
[408524228,1773821438421,-1258.0,0.00015063,2]
[408524229,1773821438430,-773.81,0.00015068,2]
[408524230,1773821438439,-1258.0,0.00015088,2]
[408524231,1773821438449,-1258.0,0.0001511,2]
[408524232,1773821438458,-7795.59856388,0.00015149,2]
[408524233,1773821438467,-5095.84660559,0.00015167,2]
[408524234,1773821438476,-1761.32,0.00015187,2]
[408524235,1773821438485,-440.6084839,0.00015212,2]
[408524236,1773821438496,-630.60073738,0.000153,3]
[408524237,1773821438505,-214.0,0.00015457,2]
[408524238,1773821438514,-1029.0,0.00015465,2]
[408524239,1773821438523,-1000.0,0.000155,2]